Cogmind - Beta 16 @@@ ROGUE MODE // 2025.12.14 @ 02:01:37 Player: Kat Result: Self-destructed Performance ------------- Evolutions (1) 500 Regions Visited (2) 400 Robots Destroyed (16) 80 Value Destroyed (348) 348 Prototype IDs (0) 0 Alien Tech Used (0) 0 Bonus (0) 0 TOTAL SCORE: 1328 Bonus ------- None Cogmind --------- Core Integrity 259/400 Matter 279/300 Energy 160/160 System Corruption 0% Temperature Cool (43) Movement Flying (1000) Ox12 Location -9/Materials Parts ------- > --- POWER (1) -------- Light Nuclear Core > --- PROPULSION (2) --- Flight Unit > --- UTILITY (3) ------ Heat Sink High-capacity Storage Unit Structural Scanner > --- WEAPON (3) ------- Small Laser Particle Gun > --- INVENTORY (20) --- Ion Engine Ion Engine Wheel Peak State ------------ > --- POWER ------------ Light Nuclear Core > --- PROPULSION ------- Wheel > --- UTILITY ---------- Heat Sink High-capacity Storage Unit Structural Scanner > --- WEAPON ----------- Small Laser Particle Gun Light Cannon > --- INVENTORY -------- Ion Engine Ion Engine [Rating: 11] Favorites ----------- Power Ion Engine Engine Ion Engine Power Core Light Nuclear Core Propulsion Aluminum Leg Leg Aluminum Leg Wheel Wheel Flight Unit Flight Unit Utility High-capacity Storage Unit Device Seismic Detector Storage High-capacity Storage Unit Weapon EM Pulse Gun Energy Gun EM Pulse Gun Ballistic Cannon Light Cannon Build | -11 -10 -9 ------- Run | Yrd Mat Mat Slots Evolved 2 | . . 2 Power . | . . . Propulsion . | . . . Utility 1 | . . 1 Weapon 1 | . . 1 Parts Attached 18 | 7 7 4 Power 2 | 1 1 . Engine 1 | 1 . . Core 1 | . 1 . Reactor . | . . . Propulsion 6 | 2 2 2 Treads . | . . . Leg 2 | 2 . . Wheel 2 | . 2 . Hover . | . . . Flight 2 | . . 2 Utility 5 | 2 1 2 Device 3 | 1 . 2 Storage 2 | 1 1 . Processor . | . . . Hackware . | . . . Protection . | . . . Artifact . | . . . Weapon 5 | 2 3 . Energy Gun 4 | 2 2 . Energy Cannon . | . . . Ballistic Gun . | . . . Ballistic Cannon 1 | . 1 . Launcher . | . . . Special Weapon . | . . . Impact Weapon . | . . . Slashing Weapon . | . . . Piercing Weapon . | . . . Special Melee Weapon . | . . . Unidentified Prototypes . | . . . Parts Lost 5 | . 3 2 Power . | . . . Propulsion 2 | . 1 1 Utility 1 | . 1 . Weapon 2 | . 1 1 Highest Loss Streak 1 | . 1 1 To Critical Strikes . | . . . Average Backups 2 | 1 3 2 Power 1 | . 1 2 Propulsion . | . . . Utility . | . . . Weapon 1 | . 1 . Tool/Special . | . . . Unused Backups 3 | . 2 1 Power 1 | . . 1 Propulsion . | . . . Utility . | . . . Weapon 1 | . 1 . Tool/Special 1 | . 1 . Average Slot Usage (%) 89 | . 92 85 Engine 7 | . 11 . Core 5 | . 3 11 Leg 11 | . 16 . Wheel 6 | . 7 5 Flight 3 | . . 11 Device 15 | . 12 21 Storage 13 | . 14 11 Energy Gun 19 | . 17 22 Ballistic Cannon 7 | . 9 2 Peak Build Rating 11 | 7 9 11 Average Rating 7 | 5 7 10 On Entrance 5 | . 7 8 Avg Prop Armor Cover (%) . | . . . Naked Turns . | . . . Heaviest Build 54 | 15 51 54 Greatest Support 20 | 20 20 10 Greatest Overweight (x) 6 | . 5 6 Average Overweight (x) 2 | . 1 5 Largest Inventory Capacity 20 | 8 20 20 Average Capacity 16 | 7 17 20 Most Carried 7 | 4 7 4 Average Carried 2 | 1 3 2 Final Capacity 20 | 8 20 20 Final Carried 5 | 1 5 3 Class Distribution -------------------- 62% | Mutant 30% | Scavenger-Mutant 7% | Scavenger-Skirmisher Dominant Class ---------------- Mutant | -10/Materials Scavenger-Mutant | -9/Materials Resources | -11 -10 -9 ----------- Run | Yrd Mat Mat Matter Collected 456 | 260 173 23 Remotely . | . . . Salvage Created 481 | 116 342 23 Parts 33 | 3 27 3 Haulers Intercepted . | . . . Recyclers Shooed . | . . . Parts Field Recycled . | . . . Retrieved Matter . | . . . Parts Self-Destructed . | . . . Prevented . | . . . Parts Restored . | . . . Kills | -11 -10 -9 ------- Run | Yrd Mat Mat Combat Hostiles Destroyed 12 | . 10 2 Guns 5 | . 3 2 Cannons 5 | . 5 . AOE 2 | . 2 . Classes Destroyed 6 | 2 4 . Builder 1 | . 1 . Tunneler 1 | 1 . . Recycler 1 | 1 . . Watcher 1 | . 1 . Swarmer 5 | . 3 2 Grunt 7 | . 7 . Best Kill Streak 4 | 2 4 1 Combat Bots Only 3 | . 3 1 Max Kills in Single Turn 2 | 1 2 1 Gunslinging . | . . . Exploded 1 | . 1 . Melee . | . . . Uniques/NPCs Destroyed . | . . . Combat | -11 -10 -9 -------- Run | Yrd Mat Mat Hostile Shots Fired 92 | . 55 37 Missed 22 | . 18 4 Hits 70 | . 37 33 Projectile 70 | . 37 33 Critical Strikes 2 | . . 2 Damage Taken 795 | . 469 326 Core 232 | . 91 141 Absorbed by Shields . | . . . Core Remaining (%) 81 | 100 63 . Volleys Fired 47 | 9 29 9 Largest 3 | 2 2 3 Hottest 135 | 80 105 135 Shots Fired 86 | 18 49 19 Gun 58 | 18 22 18 Cannon 28 | . 27 1 Launcher . | . . . Special . | . . . Kinetic 28 | . 27 1 Thermal 23 | . 5 18 Explosive . | . . . Electromagnetic 35 | 18 17 . Robot Hit Streak 11 | 5 11 3 Robot Miss Streak 3 | 2 3 2 Penetration Max . | . . . Secondary Targets . | . . . Shots Hit Robots 57 | 11 34 12 Core Hits 20 | 3 15 2 Critical Kills . | . . . Critical Parts Destroyed . | . . . Critical Strikes 1 | 1 . . Corrupt 1 | 1 . . Melee Attacks . | . . . Impact . | . . . Slashing . | . . . Piercing . | . . . Sneak Attacks . | . . . Combat Hostiles . | . . . Follow-up Attacks . | . . . Damage Inflicted 1021 | 208 644 169 Guns 502 | 163 189 150 Cannons 350 | . 331 19 Explosions 169 | 45 124 . Melee . | . . . Ramming . | . . . Kinetic 350 | . 331 19 Thermal 349 | 45 154 150 Explosive . | . . . Electromagnetic 322 | 163 159 . Impact . | . . . Slashing . | . . . Piercing . | . . . Highest Corruption . | . . . Average Corruption . | . . . Corruption Purged . | . . . Corruption Blocked . | . . . Overload Shots . | . . . Overflow Damage 9 | . 9 . Projectiles . | . . . Explosions 9 | . 9 . Melee . | . . . Knockbacks 6 | . 5 1 Impact . | . . . Kinetic 5 | . 4 1 Secondary 1 | . 1 . Self-Inflicted Damage 60 | . 60 . Shots 3 | . 3 . Rammed . | . . . Targets Rammed . | . . . Kicked . | . . . Crushed . | . . . Highest Temperature 183 | 108 183 102 Average Temperature 48 | 44 50 48 Received Heat Transfer 240 | . 159 81 Siege Activations . | . . . Martial Activations . | . . . Shielding Activations . | . . . Robots Disrupted . | . . . Combat Hostiles . | . . . Robots Corrupted . | . . . Combat Hostiles . | . . . Parts Fried 1 | 1 . . Impact Corruptions . | . . . Robots Melted . | . . . Combat Hostiles . | . . . Parts Melted 1 | . . 1 Heat Transferred 633 | 50 224 359 Parts Sabotaged . | . . . Parts Stolen . | . . . Parts Stripped . | . . . Power Chain Reactions 4 | 1 3 . Alert | -11 -10 -9 ------- Run | Yrd Mat Mat Maximum Alert Level 1 | . 1 . Low Security (%) 99 | 100 99 100 Level 1 . | . . . Level 2 . | . . . Level 3 . | . . . Level 4 . | . . . Level 5 . | . . . High Security . | . . . Max Security . | . . . Peak Influence 200 | 5 200 110 Initial 70 | . . 70 Average 56 | . 63 68 Influence Increases 441 | 10 331 100 Destroy 0b10 Robot/C 240 | . 200 40 Destroy 0b10 Robot/NC 20 | 10 10 . Destroy Leader 42 | . 42 . Successful Hack 9 | . 9 . Destroy Structure 10 | . 10 . Lose Combat Pursuer 120 | . 60 60 Influence Decreases 421 | 10 163 248 Entered New Map 98 | . . 98 Time Decay 273 | 10 133 130 Lost Part 50 | . 30 20 Squads Dispatched 1 | . 1 . Investigation 1 | . 1 . Extermination . | . . . Reinforcement . | . . . Assault . | . . . Garrison . | . . . Intercept . | . . . Searches Triggered . | . . . Construction Impeded . | . . . Haulers Reinforced . | . . . Active Scanning Responses . | . . . Cargo Convoy Interrupts . | . . . Stealth | -11 -10 -9 --------- Run | Yrd Mat Mat Distress Signals 2 | . 2 . Communications Jammed . | . . . Distress Signals . | . . . Times Spotted 26 | . 16 10 Peak Tracking Total 8 | . 8 6 Tactical Retreats 3 | . 2 1 Traps | -11 -10 -9 ------- Run | Yrd Mat Mat Traps Triggered . | . . . Indirectly . | . . . Trap Hack Attempts . | . . . Triggered . | . . . Disarmed . | . . . Reprogrammed . | . . . Reused . | . . . Traps Extracted . | . . . Installed . | . . . Triggered . | . . . Machines | -11 -10 -9 ---------- Run | Yrd Mat Mat Machines Disabled . | . . . Max in Single Turn . | . . . Machines Repaired . | . . . Machines Dismantled . | . . . Machines Sabotaged . | . . . Overloaded Fab Kills . | . . . Hacking | -11 -10 -9 --------- Run | Yrd Mat Mat Machines Accessed 3 | . 2 1 Terminals 2 | . 2 . Fabricators . | . . . Repair Stations . | . . . Recycling Units . | . . . Scanalyzers 1 | . . 1 Garrison Access . | . . . Total Hacks 11 | . 7 4 Successful 3 | . 2 1 Failed 7 | . 5 2 Catastrophic 1 | . 1 . Database Lockouts 1 | . . 1 Manual . | . . . Terminals 7 | . 7 . Fabricators . | . . . Repair Stations . | . . . Recycling Units . | . . . Scanalyzers 4 | . . 4 Garrison Access . | . . . Terminal Hacks 2 | . 2 . Dispatch Records 1 | . 1 . Zone Layout 1 | . 1 . Fabricator Hacks . | . . . Repair Station Hacks . | . . . Recycling Unit Hacks . | . . . Scanalyzer 1 | . . 1 Retrieve Study 1 | . . 1 Garrison Access Hacks . | . . . Unauthorized Hacks . | . . . Terminals . | . . . Fabricators . | . . . Repair Stations . | . . . Recycling Units . | . . . Scanalyzers . | . . . Garrison Access . | . . . Data Cores Recovered . | . . . Used . | . . . Hacking Detections 3 | . 2 1 Full Trace Events 1 | . 1 . Feedback Events . | . . . Feedback Blocked . | . . . Robot Schematics Acquired . | . . . Robots Built . | . . . Authchips . | . . . Time . | . . . Total Robot Build Rating . | . . . Part Schematics Acquired . | . . . Parts Built . | . . . Authchips . | . . . Time . | . . . Total Part Build Rating . | . . . Part Studies Acquired . | . . . Parts Repaired . | . . . Time . | . . . Parts Recycled . | . . . Recycled Matter . | . . . Retrieved Matter . | . . . Retrieved Components . | . . . Parts Scanalyzed . | . . . Part Schematics Acquired . | . . . Parts Damaged . | . . . Bothacking | -11 -10 -9 ------------ Run | Yrd Mat Mat Used RIF Installer . | . . . Robots Hacked . | . . . Non-combat . | . . . Combat . | . . . Robot Hacks Applied . | . . . Relay Couplers Released . | . . . Fabnet Peak Effective % . | . . . Robots Rewired . | . . . Allies Hacked . | . . . Hacks Repelled . | . . . Allies | -11 -10 -9 -------- Run | Yrd Mat Mat Total Allies . | . . . Largest Group . | . . . Highest-Rated Group . | . . . Highest-Rated Ally . | . . . Total Orders . | . . . Ally Attacks . | . . . Total Damage . | . . . Kills . | . . . Allies Corrupted . | . . . Allies Melted . | . . . Intel | -11 -10 -9 ------- Run | Yrd Mat Mat Active Infowar (turns) 750 | 16 472 262 Structural 262 | . . 262 Seismic 488 | 16 472 . Robot Analysis Total . | . . . Derelict Logs Recovered . | . . . Drone Launches . | . . . Drone Recoveries . | . . . Exploration | -11 -10 -9 ------------- Run | Yrd Mat Mat Turns Passed 941 | 126 552 263 Spaces Moved 419 | 75 258 86 Core 8 | 8 . . Treads . | . . . Legs 198 | 67 131 . Wheels 187 | . 127 60 Hover . | . . . Flight 26 | . . 26 Fastest Speed 50 | 50 110 155 Average Speed 165 | 112 147 264 Slowest Speed 517 | 120 260 517 Overloaded Moves . | . . . Propulsion Burnouts . | . . . Robots Hopped . | . . . Potential Cave-ins . | . . . Cave-ins Triggered . | . . . Exploration Rate (%) 17 | 5 42 6 Regions Visited 2 Branch Regions . Pre-discovered Areas . | . . . Known Exits Taken . | . . . Unknown Exits Taken 2 | 1 1 . Scrap Searched . | . . . Spaces Dug . | . . . Terrain Destroyed 9 | 3 6 . Melee . | . . . Projectile . | . . . AOE 9 | 3 6 . Terrain Rammed . | . . . Walls Destroyed . | . . . Machines Disabled . | . . . Actions | -11 -10 -9 --------- Run | Yrd Mat Mat Total 580 | 98 380 102 Wait 70 | . 70 . Move 417 | 74 257 86 Hop . | . . . Pick Up 21 | 8 11 2 Fast Attach . | . . . Attach 12 | 7 1 4 Detach . | . . . Swap 7 | . 6 1 Drop 6 | . 6 . Fire 47 | 9 29 9 Melee . | . . . Ram . | . . . Kick . | . . . Crush . | . . . Escape Stasis . | . . . Rewire . | . . . Trap . | . . . Miscellaneous . | . . . Route ------- -11/Scrapyard -10/Materials (discovered 2 exits: *Mat / [*Min]) -9/Materials History --------- Turn | Location | Event 4 | -11/Scrapyard | Discovered new exit (range 15) 127 | -11/Scrapyard | Entered Materials 311 | -10/Materials | Build established: Mutant 449 | -10/Materials | Discovered new exit (range 12) 666 | -10/Materials | Discovered new exit (range 7) 679 | -10/Materials | Entered another Materials area 679 | -9/Materials | Evolved 2 slots: Utility x1, Weapon x1 731 | -9/Materials | Central database locked down 942 | -9/Materials | Self-destructed Last Messages --------------- 00731_ Current location identified: Materials >>Study(Lgt. Nuclear Core) Identified Lgt. Nuclear Core... 00731_ ALERT: Central database lockdown, local access denied. 00749_ S-10 Pest knocked back. 00752_ Lgt. Cannon destroyed. 00752_ S-10 Pest destroyed. 00766_ S-10 Pest heat short circuits Flight Unit. 00767_ Acquired 9 matter. 00770_ Acquired Flight Unit. 00775_ R-06 Scavenger collects Flight Unit. 00778_ Lgt. Assault Rifle melted. 00778_ S-10 Pest destroyed. 00798_ Acquired 14 matter. 00801_ Acquired Flight Unit. 00926_ Critical hit (Burn: +37). 00940_ Flight Unit destroyed. 00941_ Critical hit (Burn: +37). Map ----- +----------------------------------------------------+ | ?????????????????????????????????????????????????? | | ?????????????????????????????????????????????????? | | ?????????????????????????????????????????????????? | | ?????????????????????????????????????????????????? | | ?????????????????????????????????????????????????? | | ?????????????????????????????????????????????????? | | ?????????????????????????????????????????????????? | | ?????????????????????????????????????????????????? | | ?????????????????????????????????????????????????? | | ?????????????????????"???????????????????????????? | | ??????????????????"""" ?????????????????????????? | | ????????????????? ?????????????????????????? | | ????????????????? ?????????????????????????? | | ????????????????? [! ?????????????????????????? | | ????????????????? !! ????????????????????????? | | ?????????????????? ????????????????????????? | | ?????????????????? ????????????????????????? | | ?????#########???? ????????????????????????? | | ?????########### """" ????????????????????????? | | ?????## #### """" ?????######?????????????? | | ?????## ??""" ############# ??????????? | | ?????## " ?????? ##### #####??????????? | | ??????? ????????? Y ! ????????? | | ####### ########???##gg ????????? | | ######## #########???##s#### ##?????????????? | | # # ##???##@#####??###?????????????? | | # # ##???## # ?????????????????????? | | "" """ + # "" ##???## # ?????????????????????? | | "" """ # # """##???## # ?????????????????????? | | "" """ # # S"##???## # ?????????????????????? | | # # ####### # ?????????????????????? | | ######+########### # ?????????????????????? | | + # ?????????????????????? | | ########################### ?????????????????????? | | ############################?????????????????????? | | ?????????????????????????????????????????????????? | | ?????????????????????????????????????????????????? | | ?????????????????????????????????????????????????? | | | | | | | | | | | | | | | | | | | | | | | | | +----------------------------------------------------+ Best States ------------- Heat Dissipation 38 Energy Generation 14 Energy Capacity 250 Matter Stores 300 Matter Capacity 300 Sight Range 16 Terrain Scan Density 10 Evasion (%) 55 Item Schematics ----------------- None Robot Schematics ------------------ None Fabricated ------------ Nothing Repaired ---------- Nothing Studied --------- None Alien Tech Used ----------------- None Achievements -------------- None Challenges ------------ None Game ------ Seed TacticalPersonalMantle Manual? 0 Play Time 00:06:28 Cumulative 9.5 hours Start 2025.12.14 @ 01:55:22 End 2025.12.14 @ 02:01:37 Sessions 1 Manual Loads 0 Difficulty Rogue Special Mode None Game No. 39 Rogue 39 Adventurer 0 Explorer 0 Win Type - Total 0 Types 0/0/0/0/0/0/0/0/0/0 Lore% 7 Gallery% 19 Achievement% 13 Wizard Run 0 Options --------- Layout 1 ASCII 0 Keyboard 0 Movement Mouse Keybinds 0 Fullscreen 1 Font 24/Smallcaps Map View 50x35 Zoom Use 0% Tactical HUD 1 Map Filters NONE Filters NONE Steam 1 RUN: adfee927-a0a2-42ff-af88-4ca7aa456ac5